fUSD/lending_fUSD_20260611
["ID","MTS","AMOUNT","RATE_DAILY","PERIOD"]
[424789430,1781165456000,-391.89578792,0.00022,2]
[424789432,1781165456000,-318.0,0.00022,2]
[424789433,1781165456000,-151.0,0.00022,2]
[424789436,1781165456000,-313.0,0.00022,2]
[424789435,1781165456000,-310.0,0.00022,2]
[424789438,1781165456000,-200.0,0.00022132,2]
[424789437,1781165456000,-151.0,0.00022,2]
[424789440,1781165456000,-154.12265554,0.00022132,2]
[424789443,1781165456000,-151.0,0.00022132,2]
[424789469,1781165456000,-1358.0,0.00022709,2]
[424789509,1781165456000,-1069.96266565,0.00024,2]
[424789470,1781165456000,-382.0,0.00022709,2]
[424789501,1781165456000,-636.0,0.00023636,7]
[424789502,1781165456000,-441.95,0.000237,7]
[424789503,1781165456000,-150.0,0.00023716,7]
[424789504,1781165456000,-242.15909246,0.00023776,2]
[424789512,1781165456000,-246.0,0.00024,2]
[424789513,1781165456000,-990.0,0.00024,2]
[424789506,1781165456000,-151.0,0.00023776,2]
[424789511,1781165456000,-441.0,0.00024,2]
[424789505,1781165456000,-154.12265568,0.00023776,2]
[424789510,1781165456000,-251.0,0.00024,2]
[424789507,1781165456000,-2884.75459676,0.00023776,2]
[424789500,1781165456000,-298.5,0.00023476,2]
[424789514,1781165456000,-1461.0,0.00024,2]
[424789517,1781165456000,-318.0,0.00024,2]
[424789515,1781165456000,-303.0,0.00024,2]
[424789521,1781165456000,-537.39,0.0002411,2]
[424789522,1781165456000,-321.79,0.0002411,2]
[424789519,1781165456000,-310.0,0.00024,2]
[424789523,1781165456000,-150.0,0.00024164,2]
[424789520,1781165456000,-313.0,0.00024,2]
[424789525,1781165456000,-621.78829552,0.00024322,2]
[424789524,1781165456000,-636.0,0.00024263,7]
[424789518,1781165456000,-838.0,0.00024,2]
[424789474,1781165456000,-6076.0,0.00022709,2]
[424789516,1781165456000,-185.0,0.00024,2]
[424789499,1781165456000,-5570.01,0.00023363,7]
[424789508,1781165456000,-500.0,0.00024,2]
[424789498,1781165456000,-350.0,0.00023361,4]
[424789495,1781165456000,-151.0,0.00023228,2]
[424789473,1781165456000,-3643.0,0.00022709,2]
[424789475,1781165456000,-1066.0,0.00023,2]
[424789472,1781165456000,-1227.0,0.00022709,2]
[424789476,1781165456000,-251.0,0.00023,2]
[424789477,1781165456000,-441.0,0.00023,2]
[424789478,1781165456000,-1000.074781,0.00023,30]
[424789480,1781165456000,-990.0,0.00023,2]
[424789479,1781165456000,-246.0,0.00023,2]
[424789481,1781165456000,-1461.0,0.00023,2]
[424789482,1781165456000,-303.0,0.00023,2]
[424789485,1781165456000,-838.0,0.00023,2]
[424789486,1781165456000,-310.0,0.00023,2]
[424789471,1781165456000,-1274.0,0.00022709,2]
[424789493,1781165456000,-233.5188934,0.00023228,2]
[424789484,1781165456000,-318.0,0.00023,2]
[424789487,1781165456000,-313.0,0.00023,2]
[424789488,1781165456000,-636.0,0.0002301,6]
[424789489,1781165456000,-150.0,0.00023014,2]
[424789491,1781165456000,-300.0,0.00023218,2]
[424789490,1781165456000,-300.0,0.00023218,2]
[424789492,1781165456000,-300.0,0.00023218,2]
[424789483,1781165456000,-185.0,0.00023,2]
[424789494,1781165456000,-154.12265554,0.00023228,2]
[424789496,1781165456000,-2781.82699784,0.00023228,2]
[424789497,1781165456000,-731.60666986,0.000233,2]
[424789566,1781165457000,-177.357647,0.00025065,2]
[424789554,1781165457000,-304.0,0.00025,2]
[424789564,1781165457000,-53895.50646287,0.00025065,2]
[424789565,1781165457000,-177.357647,0.00025065,2]
[424789562,1781165457000,-300.0,0.00025064,10]
[424789558,1781165457000,-320.0,0.00025,2]
[424789561,1781165457000,-300.0,0.00025064,10]
[424789559,1781165457000,-317.0,0.00025,2]
[424789557,1781165457000,-854.0,0.00025,2]
[424789556,1781165457000,-330.0,0.00025,2]
[424789567,1781165457000,-177.357647,0.00025065,2]
[424789560,1781165457000,-5570.01,0.00025044,7]
[424789563,1781165457000,-300.0,0.00025064,10]
[424789571,1781165457000,-930.56969256,0.00025329,2]
[424789568,1781165457000,-177.35765,0.00025065,2]
[424789570,1781165457000,-150.0,0.00025329,2]
[424789573,1781165457000,-439.24814526,0.00025329,2]
[424789572,1781165457000,-150.0,0.00025329,2]
[424789574,1781165457000,-150.0,0.00025373,2]
[424789577,1781165457000,-441.95,0.000256,7]
[424789580,1781165457000,-1358.0,0.00025709,2]
[424789576,1781165457000,-636.0,0.00025515,9]
[424789578,1781165457000,-150.0,0.00025709,2]
[424789575,1781165457000,-270.0455652,0.0002542,2]
[424789579,1781165457000,-3556.0,0.00025709,2]
[424789569,1781165457000,-152.26468,0.00025065,2]
[424789555,1781165457000,-193.0,0.00025,2]
[424789529,1781165457000,-151.0,0.00024324,2]
[424789553,1781165457000,-1473.0,0.00025,2]
[424789581,1781165457000,-382.0,0.00025709,2]
[424789526,1781165457000,-151.0,0.00024322,2]
[424789527,1781165457000,-775.4783256,0.00024322,2]
[424789528,1781165457000,-251.11897888,0.00024324,2]
[424789533,1781165457000,-1000.0,0.00024658,2]
[424789530,1781165457000,-2991.49051684,0.00024324,2]
[424789532,1781165457000,-170.45,0.00024658,2]
[424789534,1781165457000,-155.293853,0.00024658,2]
[424789536,1781165457000,-151.0,0.00024658,2]
[424789537,1781165457000,-151.0,0.00024658,2]
[424789531,1781165457000,-331.4,0.00024324,2]
[424789535,1781165457000,-151.0,0.00024658,2]
[424789552,1781165457000,-990.0,0.00025,2]
[424789540,1781165457000,-151.0,0.00024658,2]
[424789538,1781165457000,-213.301515,0.00024658,2]
[424789544,1781165457000,-151.0,0.00024658,2]
[424789541,1781165457000,-151.0,0.00024658,2]
[424789542,1781165457000,-151.0,0.00024658,2]
[424789543,1781165457000,-151.0,0.00024658,2]
[424789545,1781165457000,-159.784623,0.00024658,2]
[424789546,1781165457000,-150.0,0.00024716,7]
[424789547,1781165457000,-260.4103811,0.00024872,2]
[424789548,1781165457000,-636.0,0.00024889,8]
[424789551,1781165457000,-258.0,0.00025,2]
[424789549,1781165457000,-253.0,0.00025,2]
[424789550,1781165457000,-459.0,0.00025,2]
[424789539,1781165457000,-151.0,0.00024658,2]
[424789582,1781165457000,-1274.0,0.00025709,2]
[424789583,1781165457000,-1227.0,0.00025709,2]
[424789585,1781165457000,-6076.0,0.00025709,2]
[424789611,1781165457000,-1513.858737,0.00026384,2]
[424789614,1781165457000,-1513.858737,0.00026384,2]
[424789615,1781165457000,-1513.858737,0.00026384,2]
[424789617,1781165457000,-1513.858737,0.00026384,2]
[424789621,1781165457000,-1513.858737,0.00026384,2]
[424789619,1781165457000,-1513.858737,0.00026384,2]
[424789622,1781165457000,-1513.858737,0.00026384,2]
[424789620,1781165457000,-1513.858737,0.00026384,2]
[424789623,1781165457000,-1513.858737,0.00026384,2]
[424789626,1781165457000,-1513.858737,0.00026384,2]
[424789625,1781165457000,-1513.858737,0.00026384,2]
[424789624,1781165457000,-1513.858737,0.00026384,2]
[424789612,1781165457000,-1513.858737,0.00026384,2]
[424789627,1781165457000,-1513.858737,0.00026384,2]
[424789628,1781165457000,-1513.858746,0.00026384,2]
[424789629,1781165457000,-500.0,0.00026534,7]
[424789632,1781165457000,-500.0,0.00026534,7]
[424789631,1781165457000,-500.0,0.00026534,7]
[424789633,1781165457000,-585.99,0.00026534,7]
[424789634,1781165457000,-150.0,0.00026641,2]
[424789640,1781165457000,-152.0,0.00026891,3]
[424789635,1781165457000,-10590.30588343,0.00026708,2]
[424789638,1781165457000,-636.0,0.00026768,10]
[424789641,1781165457000,-500.0,0.00026986,7]
[424789639,1781165457000,-150.0,0.00026867,2]
[424789636,1781165457000,-150.0,0.00026716,7]
[424789630,1781165457000,-500.0,0.00026534,7]
[424789616,1781165457000,-1513.858737,0.00026384,2]
[424789637,1781165457000,-5570.01,0.00026725,7]
[424789613,1781165457000,-1513.858737,0.00026384,2]
[424789618,1781165457000,-1513.858737,0.00026384,2]
[424789584,1781165457000,-3643.0,0.00025709,2]
[424789589,1781165457000,-500.0,0.0002589,7]
[424789588,1781165457000,-500.0,0.0002589,7]
[424789590,1781165457000,-9800.0,0.000259,9]
[424789587,1781165457000,-100000.0,0.00025786,7]
[424789591,1781165457000,-407.24794706,0.00025968,2]
[424789592,1781165457000,-162.0,0.00025984,2]
[424789593,1781165457000,-70000.0,0.00026,7]
[424789594,1781165457000,-164.4954381,0.00026,2]
[424789596,1781165457000,-383.85,0.00026027,7]
[424789597,1781165457000,-229.85,0.00026027,7]
[424789595,1781165457000,-550.0,0.00026,2]
[424789586,1781165457000,-150.0,0.00025716,7]
[424789600,1781165457000,-151.0,0.00026157,2]
[424789598,1781165457000,-636.0,0.00026141,9]
[424789608,1781165457000,-350.0,0.00026333,7]
[424789607,1781165457000,-331.4,0.00026296,2]
[424789609,1781165457000,-1513.858737,0.00026384,2]
[424789606,1781165457000,-1411.814648,0.00026157,2]
[424789610,1781165457000,-1513.858737,0.00026384,2]
[424789604,1781165457000,-151.0,0.00026157,2]
[424789602,1781165457000,-151.0,0.00026157,2]
[424789603,1781165457000,-215.639621,0.00026157,2]
[424789599,1781165457000,-151.0,0.00026154,7]
[424789601,1781165457000,-156.848041,0.00026157,2]
[424789605,1781165457000,-1136127.91412177,0.00026157,2]
[424789679,1781165458000,-711.920535,0.00027397,2]
[424789680,1781165458000,-711.920535,0.00027397,2]
[424789678,1781165458000,-711.920535,0.00027397,2]
[424789676,1781165458000,-711.920535,0.00027397,2]
[424789673,1781165458000,-300.0,0.00027397,2]
[424789677,1781165458000,-711.920535,0.00027397,2]
[424789672,1781165458000,-1500.0,0.00027397,2]
[424789681,1781165458000,-711.920535,0.00027397,2]
[424789670,1781165458000,-955.00379912,0.00027397,2]
[424789675,1781165458000,-711.920535,0.00027397,2]
[424789674,1781165458000,-711.920535,0.00027397,2]
[424789688,1781165458000,-711.920535,0.00027397,2]
[424789683,1781165458000,-711.920535,0.00027397,2]
[424789687,1781165458000,-711.920535,0.00027397,2]
[424789684,1781165458000,-711.920535,0.00027397,2]
[424789685,1781165458000,-711.920535,0.00027397,2]
[424789686,1781165458000,-711.920535,0.00027397,2]
[424789689,1781165458000,-711.920535,0.00027397,2]
[424789691,1781165458000,-711.920535,0.00027397,2]
[424789690,1781165458000,-711.920535,0.00027397,2]
[424789692,1781165458000,-711.920535,0.00027397,2]
[424789694,1781165458000,-151.0,0.00027397,2]
[424789671,1781165458000,-268.45096075,0.00027397,2]
[424789696,1781165458000,-151.0,0.00027397,2]
[424789682,1781165458000,-711.920535,0.00027397,2]
[424789668,1781165458000,-879.53,0.00027397,7]
[424789656,1781165458000,-500.0,0.00027124,2]
[424789669,1781165458000,-979.61,0.00027397,7]
[424789698,1781165458000,-151.0,0.00027397,2]
[424789642,1781165458000,-2123.18,0.00027,7]
[424789644,1781165458000,-644.79446245,0.00027061,2]
[424789645,1781165458000,-151.0,0.00027061,2]
[424789647,1781165458000,-942.52655985,0.00027088,2]
[424789650,1781165458000,-500.0,0.00027124,2]
[424789649,1781165458000,-165.78,0.00027123,2]
[424789646,1781165458000,-804.17102365,0.00027061,2]
[424789648,1781165458000,-441.95,0.000271,7]
[424789651,1781165458000,-500.0,0.00027124,2]
[424789652,1781165458000,-500.0,0.00027124,2]
[424789666,1781165458000,-200.0,0.00027313,2]
[424789653,1781165458000,-500.0,0.00027124,2]
[424789654,1781165458000,-500.0,0.00027124,2]
[424789657,1781165458000,-500.0,0.00027124,2]
[424789659,1781165458000,-500.0,0.00027124,2]
[424789665,1781165458000,-161.92,0.000273,10]
[424789658,1781165458000,-500.0,0.00027124,2]
[424789660,1781165458000,-500.0,0.00027124,2]
[424789661,1781165458000,-233.24958669,0.00027124,2]
[424789663,1781165458000,-150.0,0.00027124,2]
[424789662,1781165458000,-150.0,0.00027124,2]
[424789664,1781165458000,-188.15521262,0.00027124,2]
[424789667,1781165458000,-636.0,0.00027394,10]
[424789655,1781165458000,-500.0,0.00027124,2]
[424789693,1781165458000,-711.920535,0.00027397,2]
[424789643,1781165458000,-2110.0,0.00027034,2]
[424789699,1781165458000,-151.0,0.00027397,2]
[424789721,1781165458000,-217.94079116,0.00027492,7]
[424789725,1781165458000,-162.50611131,0.00027492,7]
[424789729,1781165458000,-2170.91192201,0.000275,2]
[424789731,1781165458000,-615.0,0.000275,7]
[424789733,1781165458000,-1004.62,0.0002755,30]
[424789732,1781165458000,-2110.0,0.00027534,2]
[424789737,1781165458000,-612.08,0.0002755,2]
[424789739,1781165458000,-597.95,0.0002755,2]
[424789741,1781165458000,-612.08,0.0002758,7]
[424789734,1781165458000,-835.27,0.0002755,7]
[424789738,1781165458000,-638.45,0.0002755,30]
[424789735,1781165458000,-835.27,0.0002755,2]
[424789736,1781165458000,-835.27,0.0002755,30]
[424789740,1781165458000,-638.44,0.0002755,30]
[424789743,1781165458000,-612.08,0.00027611,30]
[424789745,1781165458000,-835.27,0.00027612,7]
[424789744,1781165458000,-597.95,0.00027611,30]
[424789746,1781165458000,-612.08,0.00027641,2]
[424789747,1781165458000,-597.95,0.00027641,2]
[424789748,1781165458000,-298.325,0.00027671,13]
[424789749,1781165458000,-612.08,0.00027672,7]
[424789750,1781165458000,-597.95,0.00027672,7]
[424789752,1781165458000,-597.95,0.00027702,30]
[424789751,1781165458000,-612.08,0.00027702,30]
[424789695,1781165458000,-151.0,0.00027397,2]
[424789727,1781165458000,-500.0,0.000275,7]
[424789724,1781165458000,-153.04762689,0.00027492,7]
[424789742,1781165458000,-597.95,0.0002758,7]
[424789723,1781165458000,-198.01299013,0.00027492,7]
[424789701,1781165458000,-151.0,0.00027397,2]
[424789726,1781165458000,-173.37857707,0.00027492,7]
[424789700,1781165458000,-151.0,0.00027397,2]
[424789697,1781165458000,-151.0,0.00027397,2]
[424789703,1781165458000,-167.68,0.000274,7]
[424789705,1781165458000,-151.05829979,0.00027477,7]
[424789702,1781165458000,-151.0,0.00027397,2]
[424789704,1781165458000,-300.17486916,0.00027444,10]
[424789706,1781165458000,-150.57512475,0.00027477,7]
[424789708,1781165458000,-222.50043426,0.00027492,7]
[424789710,1781165458000,-155.75749724,0.00027492,7]
[424789711,1781165458000,-158.39929802,0.00027492,7]
[424789709,1781165458000,-155.27088074,0.00027492,7]
[424789707,1781165458000,-204.04131748,0.00027492,7]
[424789712,1781165458000,-154.22367552,0.00027492,5]
[424789722,1781165458000,-178.77805632,0.00027492,7]
[424789730,1781165458000,-2052.3712962,0.000275,2]
[424789719,1781165458000,-202.35477692,0.00027492,7]
[424789720,1781165458000,-215.93952788,0.00027492,7]
[424789718,1781165458000,-173.26134078,0.00027492,7]
[424789728,1781165458000,-2054.95234238,0.000275,2]
[424789716,1781165458000,-188.68925759,0.00027492,7]
[424789715,1781165458000,-264.07425338,0.00027492,7]
[424789713,1781165458000,-166.05352273,0.00027492,7]
[424789714,1781165458000,-266.51485094,0.00027492,7]
[424789717,1781165458000,-152.80103534,0.00027492,2]
[424789793,1781165459000,-597.95,0.00028038,7]
[424789795,1781165459000,-597.95,0.00028068,30]
[424789792,1781165459000,-612.08,0.00028038,7]
[424789794,1781165459000,-612.08,0.00028068,30]
[424789791,1781165459000,-1779.35,0.00028034,2]
[424789787,1781165459000,-636.0,0.0002802,11]
[424789789,1781165459000,-638.45,0.00028033,30]
[424789786,1781165459000,-597.95,0.00028007,2]
[424789788,1781165459000,-1004.62,0.00028033,30]
[424789785,1781165459000,-612.08,0.00028007,2]
[424789797,1781165459000,-500.0,0.00028082,60]
[424789790,1781165459000,-638.44,0.00028033,30]
[424789796,1781165459000,-500.0,0.00028082,60]
[424789811,1781165459000,-835.27,0.00028405,30]
[424789799,1781165459000,-612.08,0.00028099,2]
[424789798,1781165459000,-835.27,0.00028088,7]
[424789804,1781165459000,-1004.62,0.00028194,7]
[424789801,1781165459000,-167.68,0.000281,7]
[424789803,1781165459000,-598.12,0.0002813,7]
[424789802,1781165459000,-612.14,0.0002813,7]
[424789808,1781165459000,-835.27,0.00028246,2]
[424789805,1781165459000,-638.45,0.00028194,7]
[424789807,1781165459000,-298.325,0.00028219,13]
[424789806,1781165459000,-638.44,0.00028194,7]
[424789809,1781165459000,-331.4,0.00028267,2]
[424789812,1781165459000,-5570.01,0.00028407,7]
[424789784,1781165459000,-284.91992931,0.00028,10]
[424789800,1781165459000,-597.95,0.00028099,2]
[424789783,1781165459000,-600.0,0.00028,2]
[424789756,1781165459000,-216.0,0.00027716,2]
[424789782,1781165459000,-3304.62850343,0.00028,120]
[424789753,1781165459000,-1004.62,0.00027711,7]
[424789754,1781165459000,-638.45,0.00027711,7]
[424789813,1781165459000,-348.0,0.00028476,2]
[424789755,1781165459000,-638.44,0.00027711,7]
[424789758,1781165459000,-612.08,0.00027733,2]
[424789757,1781165459000,-150.0,0.00027716,7]
[424789759,1781165459000,-597.95,0.00027733,2]
[424789761,1781165459000,-597.95,0.00027763,7]
[424789762,1781165459000,-835.27,0.00027771,2]
[424789765,1781165459000,-612.08,0.00027824,2]
[424789764,1781165459000,-597.95,0.00027794,30]
[424789760,1781165459000,-612.08,0.00027763,7]
[424789763,1781165459000,-612.08,0.00027794,30]
[424789766,1781165459000,-597.95,0.00027824,2]
[424789768,1781165459000,-597.95,0.00027855,7]
[424789770,1781165459000,-638.45,0.00027872,2]
[424789769,1781165459000,-1004.62,0.00027872,2]
[424789771,1781165459000,-638.44,0.00027872,2]
[424789776,1781165459000,-835.27,0.00027929,30]
[424789777,1781165459000,-612.08,0.00027946,7]
[424789773,1781165459000,-597.95,0.00027885,30]
[424789772,1781165459000,-612.08,0.00027885,30]
[424789775,1781165459000,-597.95,0.00027916,2]
[424789778,1781165459000,-597.95,0.00027946,7]
[424789774,1781165459000,-612.08,0.00027916,2]
[424789779,1781165459000,-150.0,0.00027973,2]
[424789780,1781165459000,-612.08,0.00027977,30]
[424789781,1781165459000,-597.95,0.00027977,30]
[424789810,1781165459000,-1004.62,0.00028355,2]
[424789767,1781165459000,-612.08,0.00027855,7]
[424789815,1781165459000,-1004.62,0.00028516,30]
[424789853,1781165459000,-311.51499448,0.0002879,7]
[424789854,1781165459000,-316.79859604,0.0002879,7]
[424789848,1781165459000,-204.61967188,0.00028781,7]
[424789849,1781165459000,-242.16492509,0.0002879,7]
[424789851,1781165459000,-445.00086852,0.0002879,7]
[424789852,1781165459000,-310.54176147,0.0002879,7]
[424789850,1781165459000,-408.08263497,0.0002879,7]
[424789855,1781165459000,-308.44735104,0.0002879,5]
[424789857,1781165459000,-533.02970187,0.0002879,7]
[424789856,1781165459000,-332.10704546,0.0002879,7]
[424789859,1781165459000,-377.37851518,0.0002879,7]
[424789858,1781165459000,-528.14850675,0.0002879,7]
[424789865,1781165459000,-306.09525379,0.0002879,7]
[424789847,1781165459000,-301.15024951,0.00028774,7]
[424789862,1781165459000,-404.70955384,0.0002879,7]
[424789866,1781165459000,-325.01222263,0.0002879,7]
[424789863,1781165459000,-357.55611263,0.0002879,7]
[424789861,1781165459000,-346.52268156,0.0002879,7]
[424789867,1781165459000,-346.75715414,0.0002879,7]
[424789868,1781165459000,-167.68,0.000288,7]
[424789869,1781165459000,-1004.62,0.00028838,2]
[424789870,1781165459000,-200.0,0.000289,2]
[424789872,1781165459000,-341.0,0.000289,2]
[424789871,1781165459000,-200.0,0.000289,2]
[424789874,1781165459000,-350.0,0.00028925,12]
[424789873,1781165459000,-512.0,0.000289,2]
[424789875,1781165459000,-292.91,0.00028971,30]
[424789816,1781165459000,-835.32,0.00028565,7]
[424789864,1781165459000,-396.02598026,0.0002879,7]
[424789846,1781165459000,-302.11659959,0.00028774,7]
[424789860,1781165459000,-305.60207067,0.0002879,2]
[424789842,1781165459000,-323.180915,0.00028767,7]
[424789814,1781165459000,-441.95,0.000285,7]
[424789844,1781165459000,-323.180915,0.00028767,7]
[424789817,1781165459000,-636.0,0.00028646,11]
[424789818,1781165459000,-1004.62,0.00028677,7]
[424789820,1781165459000,-1358.0,0.00028709,2]
[424789819,1781165459000,-3556.0,0.00028709,2]
[424789821,1781165459000,-382.0,0.00028709,2]
[424789824,1781165459000,-3643.0,0.00028709,2]
[424789823,1781165459000,-1227.0,0.00028709,2]
[424789825,1781165459000,-6076.0,0.00028709,2]
[424789826,1781165459000,-150.0,0.00028716,7]
[424789827,1781165459000,-248.90777109,0.00028759,7]
[424789828,1781165459000,-298.325,0.00028767,13]
[424789830,1781165459000,-323.180915,0.00028767,7]
[424789822,1781165459000,-1274.0,0.00028709,2]
[424789832,1781165459000,-323.180915,0.00028767,7]
[424789843,1781165459000,-323.180915,0.00028767,7]
[424789831,1781165459000,-323.180915,0.00028767,7]
[424789839,1781165459000,-323.180915,0.00028767,7]
[424789838,1781165459000,-323.180915,0.00028767,7]
[424789834,1781165459000,-323.180915,0.00028767,7]
[424789840,1781165459000,-323.180915,0.00028767,7]
[424789837,1781165459000,-323.180915,0.00028767,7]
[424789845,1781165459000,-8715.38,0.00028767,30]
[424789833,1781165459000,-323.180915,0.00028767,7]
[424789835,1781165459000,-323.180915,0.00028767,7]
[424789836,1781165459000,-323.180915,0.00028767,7]
[424789829,1781165459000,-323.180915,0.00028767,7]
[424789841,1781165459000,-323.180915,0.00028767,7]
[424789910,1781165460000,-450.63,0.00029,2]
[424789916,1781165460000,-500.0,0.00029,2]
[424789919,1781165460000,-1543.71,0.000291,4]
[424789918,1781165460000,-100000.0,0.00029009,7]
[424789912,1781165460000,-451.44,0.00029,2]
[424789909,1781165460000,-500.0,0.00029,2]
[424789913,1781165460000,-446.49,0.00029,2]
[424789914,1781165460000,-500.0,0.00029,2]
[424789915,1781165460000,-527.45674201,0.00029,2]
[424789907,1781165460000,-453.97,0.00029,2]
[424789917,1781165460000,-1004.67,0.00029,30]
[424789911,1781165460000,-450.85,0.00029,2]
[424789920,1781165460000,-1066.0,0.00029195,30]
[424789936,1781165460000,-1718.0,0.00029448,10]
[424789921,1781165460000,-251.0,0.00029195,30]
[424789925,1781165460000,-1461.0,0.00029247,30]
[424789923,1781165460000,-246.0,0.00029195,30]
[424789926,1781165460000,-303.0,0.00029247,30]
[424789924,1781165460000,-990.0,0.00029247,30]
[424789927,1781165460000,-185.0,0.00029247,30]
[424789930,1781165460000,-313.0,0.00029247,30]
[424789929,1781165460000,-318.0,0.00029247,30]
[424789928,1781165460000,-838.0,0.00029247,30]
[424789931,1781165460000,-310.0,0.00029247,30]
[424789932,1781165460000,-636.0,0.00029273,12]
[424789937,1781165460000,-271.0,0.00029448,2]
[424789908,1781165460000,-10000.0,0.00029,2]
[424789922,1781165460000,-441.0,0.00029195,30]
[424789904,1781165460000,-216.96,0.00029,2]
[424789876,1781165460000,-167.43618432,0.00028971,2]
[424789906,1781165460000,-10000.0,0.00029,2]
[424789938,1781165460000,-167.68,0.000295,7]
[424789879,1781165460000,-500.0,0.00029,2]
[424789878,1781165460000,-151.0,0.00028997,7]
[424789877,1781165460000,-165.68191016,0.00028971,2]
[424789881,1781165460000,-500.0,0.00029,2]
[424789882,1781165460000,-500.0,0.00029,2]
[424789880,1781165460000,-500.0,0.00029,2]
[424789883,1781165460000,-500.0,0.00029,2]
[424789884,1781165460000,-500.0,0.00029,2]
[424789885,1781165460000,-500.0,0.00029,2]
[424789891,1781165460000,-560.0,0.00029,2]
[424789890,1781165460000,-2511.0,0.00029,2]
[424789888,1781165460000,-409.02490364,0.00029,2]
[424789905,1781165460000,-3000.0,0.00029,2]
[424789886,1781165460000,-2746.974162,0.00029,2]
[424789887,1781165460000,-2323.16554383,0.00029,2]
[424789889,1781165460000,-1427.67,0.00029,2]
[424789894,1781165460000,-2569.4923954,0.00029,30]
[424789893,1781165460000,-492.0,0.00029,30]
[424789895,1781165460000,-162.7,0.00029,2]
[424789897,1781165460000,-438.89707,0.00029,2]
[424789896,1781165460000,-500.0,0.00029,2]
[424789898,1781165460000,-5067.0,0.00029,2]
[424789901,1781165460000,-6688.0,0.00029,5]
[424789900,1781165460000,-6503.0,0.00029,2]
[424789902,1781165460000,-1000.0,0.00029,2]
[424789899,1781165460000,-10000.0,0.00029,2]
[424789903,1781165460000,-2002.2609927,0.00029,2]
[424789892,1781165460000,-530.0,0.00029,2]
[424789935,1781165460000,-2008.0,0.00029431,2]
[424789952,1781165460000,-181.45119091,0.00029606,7]
[424789940,1781165460000,-151.6727602,0.00029595,7]
[424789976,1781165460000,-500.1,0.00029625,3]
[424789978,1781165460000,-500.1,0.00029625,3]
[424789973,1781165460000,-500.1,0.00029625,3]
[424789975,1781165460000,-563.87889674,0.00029625,3]
[424789974,1781165460000,-500.1,0.00029625,3]
[424789972,1781165460000,-500.1,0.00029625,3]
[424789977,1781165460000,-500.1,0.00029625,3]
[424789979,1781165460000,-500.1,0.00029625,3]
[424789981,1781165460000,-451.72537426,0.00029639,7]
[424789980,1781165460000,-453.17489938,0.00029639,7]
[424789982,1781165460000,-612.12395245,0.00029655,7]
[424789987,1781165460000,-462.67102655,0.00029655,5]
[424789989,1781165460000,-799.54455281,0.00029655,7]
[424789988,1781165460000,-498.16056819,0.00029655,7]
[424789934,1781165460000,-152.0,0.00029379,4]
[424789985,1781165460000,-467.27249171,0.00029655,7]
[424789986,1781165460000,-475.19789406,0.00029655,7]
[424789990,1781165460000,-792.22276013,0.00029655,7]
[424789984,1781165460000,-465.81264221,0.00029655,7]
[424789993,1781165460000,-607.06433076,0.00029655,7]
[424789991,1781165460000,-458.40310601,0.00029655,2]